bitfinex/quotes_SOLUSD_20240912
["timestamp","ask_amount","ask_price","bid_price","bid_amount"]
[1726173626757,59.8989,136.47,136.45,14.4582806]
[1726173626758,44.11,136.47,136.45,14.4582806]
[1726173626962,50.0,136.48,136.46,14.4582806]
[1726173627640,50.0,136.46,136.45,14.4582806]
[1726173628349,0.25098,136.46,136.45,14.4582806]
[1726173629658,23.776884,136.45,136.42,14.4582806]
[1726173629845,23.776884,136.45,136.4,0.2563568]
[1726173629846,0.25098,136.44,136.4,0.2563568]
[1726173630161,0.25098,136.44,136.43,14.4582806]
[1726173650072,0.12549,136.44,136.43,14.4582806]
[1726173659597,0.12549,136.44,136.4,0.2563568]
[1726173659792,0.12549,136.44,136.42,14.4582806]
[1726173659973,24.027864,136.45,136.4,0.2563568]
[1726173660173,24.027864,136.45,136.42,14.4582806]
[1726173660399,23.776884,136.41,136.4,0.2563568]
[1726173660595,68.137864,136.41,136.4,0.2563568]
[1726173660776,90.187864,136.41,136.4,0.2563568]
[1726173660981,115.07984417,136.41,136.4,0.2563568]
[1726173661178,115.07984417,136.41,136.33,14.4582806]
[1726173661179,50.0,136.37,136.33,14.4582806]
[1726173661511,74.027864,136.37,136.33,14.4582806]
[1726173661808,23.776884,136.36,136.32,0.2563568]
[1726173662006,0.25098,136.35,136.33,14.4582806]
[1726173662577,0.25098,136.35,136.34,14.4582806]
[1726173664401,0.25098,136.35,136.33,14.4582806]
[1726173664606,0.25098,136.35,136.32,14.7146374]
[1726173666004,23.776884,136.34,136.32,14.7146374]
[1726173666182,0.25098,136.33,136.32,14.7146374]
[1726173666991,0.12549,136.33,136.32,14.7146374]
[1726173677815,0.12549,136.33,136.32,0.2563568]
[1726173678200,0.12549,136.33,136.32,14.7146374]
[1726173681828,23.902374,136.33,136.32,14.7146374]
[1726173682111,24.027864,136.33,136.32,14.7146374]
[1726173683405,0.12549,136.33,136.32,14.7146374]
[1726173683713,16.2363,136.36,136.32,14.7146374]
[1726173683920,16.2363,136.36,136.35,14.4582806]
[1726173684703,16.36179,136.36,136.35,14.4582806]
[1726173684903,40.138674,136.36,136.35,14.4582806]
[1726173685507,40.264164,136.36,136.35,14.4582806]
[1726173686731,23.776884,136.35,136.34,14.4582806]
[1726173686910,24.027864,136.35,136.34,14.4582806]
[1726173687901,24.027864,136.35,136.33,14.4582806]
[1726173688106,0.25098,136.34,136.33,14.4582806]
[1726173688815,73.776884,136.33,136.32,0.2563568]
[1726173689029,74.027864,136.33,136.32,0.2563568]
[1726173691232,118.137864,136.33,136.32,0.2563568]
[1726173696843,125.78340336,136.33,136.32,0.2563568]
[1726173710234,81.67340336,136.33,136.32,14.7146374]
[1726173710650,81.54791336,136.33,136.32,14.7146374]
[1726173710842,57.64553936,136.33,136.32,14.7146374]
[1726173711654,7.64553936,136.33,136.32,14.7146374]
[1726173711936,50.0,136.35,136.32,14.7146374]
[1726173712236,23.902374,136.34,136.32,0.2563568]
[1726173712536,0.12549,136.33,136.32,0.2563568]
[1726173713256,23.902374,136.33,136.32,0.2563568]
[1726173713559,24.027864,136.33,136.32,0.2563568]
[1726173715155,74.027864,136.33,136.32,14.7146374]
[1726173715360,74.027864,136.33,136.32,0.2563568]
[1726173717266,118.137864,136.33,136.32,0.2563568]
[1726173721670,118.137864,136.33,136.32,14.7146374]
[1726173721859,96.077864,136.33,136.32,14.7146374]
[1726173722038,50.0,136.33,136.32,14.7146374]
[1726173723462,117.886884,136.33,136.32,14.7146374]
[1726173723665,118.137864,136.33,136.32,14.7146374]
[1726173732477,24.027864,136.33,136.32,14.7146374]
[1726173736361,0.25098,136.33,136.32,14.7146374]
[1726173736577,116.16,136.37,136.32,14.7146374]
[1726173736754,116.16,136.37,136.36,14.4582806]
[1726173737956,139.936884,136.37,136.36,14.4582806]
[1726173738159,140.187864,136.37,136.36,14.4582806]
[1726173739556,23.776884,136.36,136.35,14.4582806]
[1726173739756,24.027864,136.36,136.35,14.4582806]
[1726173748476,68.137864,136.36,136.35,14.4582806]
[1726173755783,44.11,136.38,136.35,14.4582806]
[1726173755998,44.11,136.38,136.37,14.4582806]
[1726173756190,51.74802977,136.38,136.37,14.4582806]
[1726173756507,73.82802977,136.38,136.37,14.4582806]
[1726173757015,97.60491377,136.38,136.37,14.4582806]
[1726173757207,97.85589377,136.38,136.37,14.4582806]
[1726173758111,94.11,136.37,136.32,0.2563568]
[1726173758278,24.027864,136.36,136.32,0.2563568]
[1726173758473,68.137864,136.36,136.35,14.4582806]
[1726173758774,23.776884,136.34,136.32,0.2563568]
[1726173758989,0.25098,136.33,136.32,14.7146374]
[1726173759574,140.217864,136.33,136.32,0.2563568]
[1726173761991,118.137864,136.33,136.32,0.2563568]
[1726173763501,74.027864,136.33,136.32,14.7146374]
[1726173763806,24.027864,136.33,136.32,14.7146374]
[1726173765898,94.11,136.37,136.32,14.7146374]
[1726173766104,94.11,136.37,136.36,14.4582806]
[1726173766484,101.74823696,136.37,136.35,14.4582806]
[1726173767105,23.776884,136.36,136.35,14.4582806]
[1726173767303,24.027864,136.36,136.35,14.4582806]
[1726173770013,0.12549,136.36,136.35,14.4582806]
[1726173773206,23.776884,136.37,136.35,14.4582806]
[1726173773408,0.12549,136.36,136.32,0.2563568]
[1726173773583,0.12549,136.37,136.32,0.2563568]
[1726173773985,0.12549,136.37,136.33,6.3939]
[1726173775901,0.12549,136.37,136.36,14.4582806]
[1726173792326,0.12549,136.37,136.32,0.2563568]
[1726173792519,0.12549,136.37,136.36,14.4582806]
[1726173793219,23.902374,136.37,136.36,14.4582806]
[1726173793416,24.027864,136.37,136.36,14.4582806]
[1726173795211,0.25098,136.37,136.35,14.4582806]
[1726173795411,0.12549,136.36,136.35,14.4582806]
[1726173797544,23.902374,136.36,136.35,14.4582806]
[1726173797742,24.027864,136.36,136.35,14.4582806]
[1726173803521,50.0,136.35,136.32,0.2563568]
[1726173803723,24.027864,136.34,136.32,0.2563568]
[1726173804047,24.027864,136.34,136.33,14.4582806]
[1726173805059,24.027864,136.34,136.32,14.7146374]
[1726173806549,24.027864,136.34,136.32,0.2563568]
[1726173808953,24.027864,136.34,136.32,14.7146374]
[1726173812060,23.776884,136.33,136.32,14.7146374]
[1726173812260,24.027864,136.33,136.32,14.7146374]
[1726173813450,68.137864,136.33,136.32,14.7146374]
[1726173813766,68.137864,136.33,136.32,0.2563568]
[1726173815245,140.217864,136.33,136.32,0.2563568]
[1726173818365,118.137864,136.33,136.32,0.2563568]
[1726173820034,68.137864,136.33,136.32,0.2563568]
[1726173820859,140.217864,136.33,136.32,0.2563568]
[1726173821954,118.137864,136.33,136.32,14.7146374]
[1726173824200,118.137864,136.33,136.32,0.2563568]
[1726173824744,68.137864,136.33,136.32,0.2563568]
[1726173825448,140.217864,136.33,136.32,0.2563568]
[1726173830796,68.137864,136.33,136.32,14.7146374]
[1726173830996,74.027864,136.33,136.32,0.2563568]
[1726173831167,140.217864,136.33,136.32,0.2563568]
[1726173832085,118.137864,136.33,136.32,0.2563568]
[1726173834386,140.217864,136.33,136.32,0.2563568]
[1726173840096,123.87356585,136.35,136.32,14.7146374]
[1726173840305,116.24,136.35,136.32,0.2563568]
[1726173840472,116.24,136.35,136.32,14.7146374]
[1726173841406,24.027864,136.34,136.32,14.7146374]
[1726173841972,23.776884,136.33,136.32,14.7146374]
[1726173842269,24.027864,136.33,136.32,14.7146374]
[1726173843598,94.16,136.37,136.32,14.7146374]
[1726173843890,94.16,136.37,136.36,14.4582806]
[1726173844275,50.0,136.36,136.32,0.2563568]
[1726173844472,50.0,136.36,136.34,14.4582806]
[1726173844880,23.902374,136.35,136.32,0.2563568]
[1726173845093,23.902374,136.35,136.34,14.4582806]
[1726173846300,0.12549,136.35,136.34,14.4582806]
[1726173846595,94.16,136.4,136.34,14.4582806]
[1726173846770,67.936884,136.39,136.38,14.4582806]
[1726173847175,44.16,136.39,136.38,14.4582806]
[1726173847397,1.68298017,136.41,136.38,14.4582806]
[1726173847701,45.84298017,136.41,136.4,14.4582806]
[1726173847882,44.16,136.41,136.4,14.4582806]
[1726173848078,50.0,136.42,136.4,14.4582806]
[1726173848399,50.0,136.42,136.39,14.4582806]
[1726173849192,50.0,136.42,136.4,14.4582806]
[1726173849793,24.027864,136.41,136.4,14.4582806]
[1726173850001,50.0,136.4,136.33,15.4186]
[1726173850182,24.027864,136.39,136.38,14.4582806]
[1726173850495,0.25098,136.39,136.38,14.4582806]
[1726173850880,24.027864,136.39,136.33,15.4186]
[1726173851098,24.027864,136.39,136.38,14.4582806]
[1726173851675,0.25098,136.39,136.38,14.4582806]
[1726173853790,0.12549,136.39,136.38,14.4582806]
[1726173857202,50.0,136.44,136.38,14.4582806]
[1726173857399,50.0,136.44,136.33,15.4186]
[1726173857400,23.902374,136.43,136.41,14.4582806]
[1726173857601,0.12549,136.42,136.41,14.4582806]
[1726173863285,44.16,136.45,136.41,14.4582806]
[1726173863484,44.16,136.45,136.44,14.4582806]
[1726173864696,68.187864,136.45,136.44,14.4582806]
[1726173867385,0.25098,136.45,136.44,14.4582806]
[1726173868216,0.2563568,136.46,136.44,14.4582806]
[1726173868392,0.2563568,136.46,136.45,14.4582806]
[1726173868593,0.3818468,136.46,136.45,14.4582806]
[1726173869612,0.5073368,136.46,136.45,14.4582806]
[1726173870499,24.2842208,136.46,136.44,14.4582806]
[1726173870694,0.25098,136.45,136.44,14.4582806]
[1726173871387,46.107864,136.45,136.44,14.4582806]
[1726173871595,24.027864,136.45,136.43,14.4582806]
[1726173872107,0.25098,136.45,136.43,14.4582806]
[1726173873017,0.25098,136.45,136.42,14.4582806]
[1726173873710,0.25098,136.45,136.43,14.4582806]
[1726173876020,0.25098,136.45,136.42,14.4582806]
[1726173877901,0.25098,136.45,136.43,14.4582806]
[1726173881702,0.25098,136.45,136.44,14.4582806]
[1726173882497,0.25098,136.45,136.43,14.4582806]
[1726173885117,0.25098,136.45,136.44,14.4582806]
[1726173886806,0.25098,136.45,136.42,14.4582806]
[1726173887021,23.776884,136.41,136.35,16.4985]
[1726173887322,0.25098,136.4,136.38,14.4582806]
[1726173896331,0.25098,136.4,136.37,14.4582806]
[1726173896537,0.25098,136.4,136.36,14.4582806]
[1726173897839,0.25098,136.4,136.35,16.4985]
[1726173898012,23.776884,136.39,136.34,14.4582806]
[1726173898333,0.25098,136.38,136.34,14.4582806]
[1726173903145,0.25098,136.38,136.35,14.4582806]
[1726173903317,44.41098,136.38,136.35,14.4582806]
[1726173905612,0.25098,136.38,136.36,14.4582806]
[1726173905826,0.25098,136.38,136.37,14.4582806]
[1726173906115,0.12549,136.38,136.37,14.4582806]
[1726173907618,0.12549,136.38,136.36,14.4582806]
[1726173910540,0.12549,136.38,136.31,22.4988]
[1726173910541,0.12549,136.38,136.34,14.4582806]
[1726173910731,0.25098,136.38,136.31,22.4988]
[1726173911033,0.25098,136.38,136.33,14.4582806]
[1726173913837,28.93038,136.38,136.33,14.4582806]
[1726173914043,23.776884,136.36,136.33,14.4582806]
[1726173914225,0.25098,136.35,136.28,22.0021568]
[1726173914426,23.776884,136.34,136.3,14.4582806]
[1726173914742,0.25098,136.33,136.28,14.7146374]
[1726173915536,0.25098,136.33,136.29,14.4582806]
[1726173915721,0.25098,136.33,136.3,14.4582806]
[1726173917017,0.12549,136.33,136.32,14.7146374]
[1726173917842,0.25098,136.33,136.32,14.7146374]
[1726173918621,140.267864,136.33,136.32,0.2563568]
[1726173918825,146.869464,136.33,136.32,0.2563568]
[1726173919221,140.267864,136.33,136.32,0.2563568]
[1726173919647,146.869464,136.33,136.32,0.2563568]
[1726173920341,140.267864,136.33,136.32,0.2563568]
[1726173927643,146.869464,136.33,136.32,0.2563568]
[1726173927840,146.869464,136.33,136.24,0.2563568]
[1726173927841,94.16,136.27,136.24,0.2563568]
[1726173928041,23.776884,136.26,136.24,0.2563568]
[1726173928242,0.25098,136.25,136.24,0.2563568]
[1726173928844,6.85648,136.25,136.24,0.2563568]
[1726173929056,24.027864,136.25,136.24,0.2563568]
[1726173932266,146.873364,136.25,136.24,0.2563568]
[1726173935361,146.873364,136.25,136.24,0.1308668]
[1726173940368,122.8455,136.25,136.24,0.1308668]
[1726173940882,66.24,136.25,136.24,0.1308668]
[1726173941251,66.24,136.26,136.24,0.1308668]
[1726173942668,44.16,136.27,136.24,0.1308668]
[1726173943068,100.7646,136.27,136.24,0.1308668]
[1726173943771,66.24,136.26,136.24,0.1308668]
[1726173943951,24.027864,136.25,136.24,0.1308668]
[1726173953655,68.187864,136.25,136.24,0.1308668]
[1726173954888,146.873364,136.25,136.24,0.1308668]
[1726173963273,149.51369866,136.25,136.24,0.1308668]
[1726173964392,44.16,136.25,136.24,0.1308668]
[1726173964575,72.8453,136.26,136.24,0.1308668]
[1726173964765,6.6055,136.25,136.24,0.1308668]
[1726173965792,30.633364,136.25,136.24,0.1308668]
[1726173966167,24.027864,136.25,136.24,0.1308668]
[1726173966877,124.793364,136.25,136.24,0.1308668]
[1726173969099,146.873364,136.25,136.24,0.1308668]
[1726173971886,146.873364,136.25,136.2,0.2563568]
[1726173971887,78.6874,136.22,136.2,0.2563568]
[1726173972093,96.875264,136.21,136.2,0.2563568]
[1726173972384,90.267864,136.21,136.2,0.2563568]
[1726173972698,44.41098,136.21,136.2,0.2563568]
[1726173973005,0.25098,136.21,136.2,0.2563568]
[1726173988607,140.267864,136.21,136.2,0.2563568]
[1726173989329,146.875264,136.21,136.2,0.2563568]
[1726174001221,163.093364,136.21,136.2,0.2563568]
[1726174006132,146.875264,136.21,136.2,0.2563568]
[1726174007933,140.267864,136.21,136.2,0.2563568]
[1726174008110,116.24,136.21,136.2,0.2563568]
[1726174009533,140.016884,136.21,136.2,0.2563568]
[1726174009735,140.267864,136.21,136.2,0.2563568]
[1726174013212,146.875264,136.21,136.2,0.2563568]
[1726174028248,44.16,136.18,136.15,0.2563568]
[1726174028548,0.25098,136.17,136.15,0.2563568]
[1726174029150,68.187864,136.17,136.15,0.2563568]
[1726174031147,90.267864,136.17,136.15,0.2563568]
[1726174031331,6.6098,136.16,136.15,0.2563568]
[1726174031522,96.752174,136.16,136.15,0.2563568]
[1726174031725,96.877664,136.16,136.15,0.2563568]
[1726174031926,90.267864,136.16,136.15,0.2563568]
[1726174041841,68.187864,136.16,136.15,0.2563568]
[1726174048752,44.16,136.18,136.15,0.2563568]
[1726174048950,44.16,136.18,136.15,14.7146374]
[1726174050270,0.25098,136.17,136.15,14.7146374]
[1726174050875,0.25098,136.17,136.15,0.2563568]
[1726174053392,24.027864,136.17,136.15,0.2563568]
[1726174054775,140.267864,136.17,136.15,0.2563568]
[1726174063683,118.187864,136.17,136.15,0.2563568]
[1726174068486,140.297864,136.17,136.15,0.2563568]
[1726174071286,118.187864,136.17,136.15,0.2563568]
[1726174072015,67.936884,136.16,136.15,0.2563568]
[1726174072186,68.187864,136.16,136.15,0.2563568]
[1726174075209,90.297864,136.16,136.15,0.2563568]
[1726174084017,90.172374,136.16,136.15,0.2563568]
[1726174085327,90.297864,136.16,136.15,0.2563568]
[1726174089207,68.187864,136.16,136.15,0.2563568]
[1726174092209,90.297864,136.16,136.15,0.2563568]
[1726174099728,44.16,136.13,136.11,0.2563568]
[1726174099922,118.187864,136.12,136.11,0.2563568]
[1726174111661,140.297864,136.12,136.11,0.2563568]
[1726174119386,140.297864,136.12,136.07,15.6756568]
[1726174119387,67.936884,136.09,136.07,0.2563568]
[1726174119577,0.25098,136.08,136.07,0.2563568]
[1726174121697,118.187864,136.08,136.07,0.2563568]
[1726174124675,140.297864,136.08,136.07,0.2563568]
[1726174126485,0.25098,136.08,136.07,0.2563568]
[1726174126694,44.16,136.09,136.07,0.2563568]
[1726174127879,0.25098,136.08,136.07,0.2563568]
[1726174128608,118.187864,136.08,136.07,0.2563568]
[1726174128779,140.297864,136.08,136.07,0.2563568]
[1726174132698,118.187864,136.08,136.07,0.2563568]
[1726174132885,94.25,136.1,136.07,14.7146374]
[1726174133087,44.25,136.11,136.07,14.7146374]
[1726174134404,24.027864,136.1,136.07,14.7146374]
[1726174134607,23.902374,136.1,136.07,14.7146374]
[1726174135785,0.12549,136.09,136.07,14.7146374]
[1726174136604,0.12549,136.09,136.07,0.2563568]
[1726174136782,0.12549,136.09,136.07,14.7146374]
[1726174143796,44.37549,136.09,136.07,14.7146374]
[1726174143997,0.12549,136.08,136.07,14.7146374]
[1726174155231,0.12549,136.09,136.07,14.7146374]
[1726174155407,0.25098,136.09,136.07,14.7146374]
[1726174160253,0.25098,136.09,136.08,14.4582806]
[1726174160538,44.25,136.13,136.08,14.4582806]
[1726174160736,50.0,136.14,136.12,14.4582806]
[1726174161038,50.0,136.16,136.12,14.4582806]
[1726174161343,50.0,136.16,136.13,14.4582806]
[1726174161521,44.25,136.15,136.12,14.4582806]
[1726174161918,23.776884,136.14,136.12,14.4582806]
[1726174162119,0.25098,136.13,136.12,14.4582806]
[1726174162320,0.12549,136.13,136.11,14.4582806]
[1726174162515,0.12549,136.14,136.12,14.4582806]
[1726174163623,23.902374,136.14,136.12,14.4582806]
[1726174163833,0.12549,136.13,136.12,14.4582806]
[1726174167730,0.12549,136.14,136.12,14.4582806]
[1726174167930,0.25098,136.14,136.12,14.4582806]
[1726174168919,0.25098,136.14,136.13,14.4582806]
[1726174172553,0.12549,136.14,136.13,14.4582806]
[1726174173044,0.12549,136.14,136.13,9.4582806]
[1726174176722,0.12549,136.14,136.09,16.1372]
[1726174177027,0.12549,136.15,136.09,16.1372]
[1726174177028,24.027864,136.15,136.12,14.4582806]
[1726174177231,24.027864,136.15,136.11,14.4582806]
[1726174178925,68.277864,136.15,136.07,0.2563568]
[1726174179148,68.026884,136.11,136.07,0.2563568]
[1726174179363,0.25098,136.1,136.07,0.2563568]
[1726174186947,0.25098,136.1,136.07,14.7146374]
[1726174188461,0.25098,136.1,136.08,14.4582806]
[1726174188657,0.12549,136.1,136.09,14.4582806]
[1726174191369,44.25,136.13,136.09,14.4582806]
[1726174191574,44.25,136.13,136.07,0.2563568]
[1726174191575,0.12549,136.12,136.11,14.4582806]
[1726174191751,50.0,136.14,136.11,14.4582806]
[1726174191951,23.776884,136.14,136.11,14.4582806]
[1726174192364,44.25,136.15,136.12,14.4582806]
[1726174192570,50.0,136.16,136.12,14.4582806]
[1726174192571,44.25,136.16,136.12,14.4582806]
[1726174193871,24.027864,136.15,136.12,14.4582806]
[1726174194255,24.027864,136.15,136.07,0.2563568]
[1726174194452,24.027864,136.15,136.1,14.4582806]
[1726174196666,24.027864,136.15,136.11,14.4582806]
[1726174198185,68.277864,136.15,136.07,0.2563568]
[1726174198376,23.776884,136.13,136.09,14.4582806]
[1726174198570,0.25098,136.12,136.09,14.4582806]
[1726174200269,0.25098,136.12,136.1,14.4582806]
[1726174200465,0.25098,136.13,136.1,14.4582806]
[1726174201158,0.25098,136.13,136.11,14.4582806]
[1726174201372,68.277864,136.14,136.1,14.4582806]
[1726174202984,68.277864,136.14,136.11,14.4582806]
[1726174205189,0.25098,136.14,136.12,14.4582806]
[1726174205367,0.25098,136.14,136.13,14.4582806]
[1726174205688,0.12549,136.14,136.13,14.4582806]
[1726174206866,0.12549,136.14,136.08,6.4748]
[1726174207085,0.25098,136.15,136.13,14.4582806]
[1726174209799,0.25098,136.15,136.14,14.4582806]
[1726174211984,0.12549,136.15,136.14,14.4582806]
[1726174212188,68.026884,136.18,136.14,14.4582806]
[1726174212381,0.25098,136.17,136.15,14.4582806]
[1726174213276,0.25098,136.17,136.16,14.4582806]
[1726174216379,0.12549,136.17,136.16,14.4582806]
[1726174216777,0.12549,136.17,136.14,14.4582806]
[1726174216982,24.027864,136.18,136.15,14.4582806]
[1726174218790,0.25098,136.18,136.16,14.4582806]
[1726174219975,0.25098,136.18,136.15,14.4582806]
[1726174223408,118.277864,136.18,136.1,20.0]
[1726174223592,124.886964,136.18,136.13,14.4582806]
[1726174225622,118.277864,136.18,136.13,14.4582806]
[1726174229629,118.277864,136.18,136.14,14.4582806]
[1726174229905,118.277864,136.18,136.15,14.4582806]
[1726174229906,68.277864,136.18,136.15,14.4582806]
[1726174232413,44.50098,136.18,136.16,14.4582806]
[1726174238624,44.50098,136.18,136.1,20.0]
[1726174238810,44.50098,136.18,136.16,14.4582806]
[1726174260835,0.25098,136.18,136.17,14.4582806]
[1726174261036,44.25,136.21,136.17,14.4582806]
[1726174261229,44.25,136.21,136.19,14.4582806]
[1726174261934,44.5063568,136.22,136.2,14.4582806]
[1726174262140,44.5063568,136.22,136.21,14.4582806]
[1726174262643,0.2563568,136.22,136.21,14.4582806]
[1726174263433,0.2563568,136.22,136.18,15.9301]
[1726174263639,0.2563568,136.22,136.19,14.4582806]
[1726174264433,24.0332408,136.22,136.19,14.4582806]
[1726174265043,68.2832408,136.22,136.19,14.4582806]
[1726174265243,0.25098,136.21,136.19,14.4582806]
[1726174265442,0.25098,136.21,136.16,6.3645]
[1726174265647,0.25098,136.21,136.18,14.4582806]
[1726174270887,0.25098,136.21,136.14,16.5798]
[1726174271175,0.25098,136.21,136.16,14.4582806]
[1726174271581,0.25098,136.21,136.15,14.4582806]
[1726174271582,44.25,136.18,136.15,14.4582806]
[1726174271745,0.25098,136.17,136.14,14.4582806]
[1726174273769,0.25098,136.17,136.15,14.4582806]
[1726174275876,0.25098,136.17,136.16,14.4582806]
[1726174277578,0.12549,136.17,136.16,14.4582806]
[1726174277784,23.776884,136.19,136.16,14.4582806]
[1726174277957,0.25098,136.18,136.17,14.4582806]
[1726174279372,44.25,136.2,136.17,14.4582806]
[1726174279578,0.12549,136.19,136.18,14.4582806]
[1726174281861,44.00098,136.21,136.18,14.4582806]
[1726174283160,44.00098,136.21,136.19,14.4582806]
[1726174283487,44.0083168,136.22,136.19,14.4582806]
[1726174283678,44.0083168,136.22,136.2,14.4582806]
[1726174284388,0.2563568,136.22,136.2,14.4582806]
[1726174286066,24.0332408,136.22,136.2,14.4582806]
[1726174286266,0.2563568,136.22,136.21,14.4582806]
[1726174286684,0.3818468,136.22,136.21,14.4582806]
[1726174286989,0.2563568,136.22,136.21,14.4582806]
[1726174295509,0.2563568,136.22,136.17,20.9683179]
[1726174295703,0.2563568,136.22,136.21,14.4582806]
[1726174304494,0.2563568,136.22,136.17,20.0]
[1726174304698,0.2563568,136.22,136.21,14.4582806]
[1726174308023,0.3818468,136.22,136.19,14.4582806]
[1726174312496,0.3818468,136.22,136.16,15.2458]
[1726174312835,0.3818468,136.22,136.19,14.4582806]
[1726174313193,0.2563568,136.22,136.21,14.4582806]
[1726174323232,0.2563568,136.26,136.25,14.4582806]
[1726174323436,0.3818468,136.26,136.25,14.4582806]
[1726174325403,0.2563568,136.26,136.25,14.4582806]
[1726174326935,0.2563568,136.3,136.25,14.4582806]
[1726174327108,0.2563568,136.3,136.29,14.4582806]
[1726174327525,24.0332408,136.3,136.29,14.4582806]
[1726174327733,24.1587308,136.3,136.29,14.4582806]
[1726174328737,0.3818468,136.3,136.29,14.4582806]
[1726174330136,0.2563568,136.3,136.29,14.4582806]
[1726174334748,0.3818468,136.3,136.29,14.4582806]
[1726174335152,0.3818468,136.3,136.24,15.0808]
[1726174335357,0.12549,136.29,136.26,14.4582806]
[1726174336154,0.12549,136.29,136.24,15.0808]
[1726174336155,0.12549,136.29,136.27,14.4582806]
[1726174338424,0.12549,136.29,136.24,15.0808]
[1726174338630,0.12549,136.29,136.27,14.4582806]
[1726174339347,0.12549,136.29,136.23,6.4094]
[1726174339530,24.027864,136.29,136.26,14.4582806]
[1726174339728,0.25098,136.29,136.26,14.4582806]
[1726174341840,0.25098,136.29,136.27,14.4582806]
[1726174342232,0.12549,136.29,136.28,14.4582806]
[1726174344530,0.2563568,136.3,136.28,14.4582806]
[1726174344759,0.2563568,136.3,136.29,14.4582806]
[1726174350569,0.2563568,136.3,136.25,20.0]
[1726174350753,0.2563568,136.3,136.29,14.4582806]
[1726174364653,0.2563568,136.3,136.25,20.0]
[1726174364850,0.2563568,136.3,136.29,14.4582806]
[1726174382672,0.2563568,136.34,136.29,14.4582806]
[1726174382885,0.2563568,136.34,136.33,14.4582806]
[1726174391994,0.2563568,136.34,136.25,20.0]
[1726174392200,0.2563568,136.34,136.32,14.4582806]
[1726174393591,44.5063568,136.34,136.32,14.4582806]
[1726174393800,0.2563568,136.34,136.32,14.4582806]
[1726174394787,0.2563568,136.34,136.33,14.4582806]
[1726174395001,0.3818468,136.34,136.33,14.4582806]
[1726174395494,0.2563568,136.34,136.33,14.4582806]
[1726174410520,0.2563568,136.38,136.33,14.4582806]
[1726174410698,0.2563568,136.38,136.37,14.4582806]
[1726174412395,0.2563568,136.38,136.34,0.36754918]
[1726174412621,0.2563568,136.38,136.37,14.4582806]
[1726174424106,0.2563568,136.38,136.33,20.0]
[1726174424634,0.2563568,136.38,136.37,14.4582806]
[1726174446567,0.2563568,136.38,136.33,20.0]
[1726174446742,0.2563568,136.38,136.37,14.4582806]
[1726174461551,0.2563568,136.38,136.33,20.0]
[1726174461753,0.2563568,136.38,136.37,14.4582806]
[1726174466579,0.2563568,136.42,136.37,14.4582806]
[1726174466795,0.2563568,136.42,136.41,14.4582806]
[1726174493524,24.0332408,136.42,136.35,16.2333]
[1726174493714,0.12549,136.41,136.38,14.4582806]
[1726174493919,0.12549,136.41,136.4,14.4582806]
[1726174494097,24.0332408,136.42,136.4,14.4582806]
[1726174494098,0.2563568,136.42,136.4,14.4582806]
[1726174494419,0.2563568,136.42,136.41,14.4582806]
[1726174511314,0.2563568,136.46,136.45,14.4582806]
[1726174515532,0.2563568,136.51,136.5,14.4582806]
[1726174515716,0.2563568,136.51,136.49,14.4582806]
[1726174521720,0.2563568,136.51,136.5,14.4582806]
[1726174521926,0.3818468,136.51,136.5,14.4582806]
[1726174524133,0.3818468,136.51,136.49,14.4582806]
[1726174524439,0.2563568,136.51,136.49,14.4582806]
[1726174525446,0.2563568,136.51,136.44,15.85]
[1726174525745,23.776884,136.49,136.45,14.4582806]
[1726174525917,0.12549,136.48,136.45,14.4582806]
[1726174526552,50.84979,136.48,136.41,16.4512]
[1726174526729,23.902374,136.47,136.44,14.4582806]
[1726174526934,0.12549,136.46,136.44,14.4582806]
[1726174527343,23.902374,136.47,136.44,14.4582806]
[1726174527637,23.776884,136.48,136.45,14.4582806]
[1726174527848,0.12549,136.47,136.45,14.4582806]
[1726174528031,23.776884,136.48,136.45,14.4582806]
[1726174528751,23.776884,136.49,136.45,14.4582806]
[1726174529047,0.12549,136.48,136.45,14.4582806]
[1726174534352,0.12549,136.48,136.46,14.4582806]
[1726174540857,0.12549,136.48,136.45,14.4582806]
[1726174545660,67.906884,136.49,136.45,14.4582806]
[1726174545871,67.906884,136.49,136.41,16.4512]
[1726174545872,23.902374,136.5,136.47,14.4582806]
[1726174546038,0.12549,136.49,136.47,14.4582806]
[1726174546938,0.12549,136.49,136.46,14.4582806]